fUSD/lending_fUSD_20260531
["ID","MTS","AMOUNT","RATE_DAILY","PERIOD"]
[423490545,1780159847000,-2579.71048091,0.00039105,2]
[423490542,1780159847000,-3596.61,0.00039033,2]
[423490548,1780159847000,-290.24399893,0.00039105,2]
[423490558,1780159847000,-226.6879464,0.00039191,120]
[423490559,1780159847000,-971.10692508,0.00039191,120]
[423490571,1780159847000,-306.21392565,0.00039192,120]
[423490553,1780159847000,-500.0,0.00039191,7]
[423490551,1780159847000,-500.0,0.00039191,7]
[423490549,1780159847000,-157.99773031,0.0003919,2]
[423490550,1780159847000,-150.0,0.0003919,2]
[423490563,1780159847000,-217.87561552,0.00039192,120]
[423490554,1780159847000,-180.61931072,0.00039191,7]
[423490564,1780159847000,-475.4914639,0.00039192,120]
[423490562,1780159847000,-212.98463789,0.00039192,120]
[423490567,1780159847000,-176.63407845,0.00039192,120]
[423490557,1780159847000,-303.91174062,0.00039191,120]
[423490556,1780159847000,-438.14837069,0.00039191,120]
[423490552,1780159847000,-500.0,0.00039191,7]
[423490555,1780159847000,-253.66084151,0.00039191,2]
[423490560,1780159847000,-180.13327881,0.00039192,120]
[423490596,1780159848000,-270.66,0.00025454,2]
[423490592,1780159848000,-1682.20121288,0.00039205,20]
[423490594,1780159848000,-1823.2261267,0.00039205,20]
[423490595,1780159848000,-422.26630739,0.00039205,20]
[423490593,1780159848000,-200.0,0.00026238,2]
[423490597,1780159848000,-7352.67821467,0.00027397,10]
[423490605,1780159848000,-1726.48056371,0.00027397,10]
[423490601,1780159848000,-943.01490399,0.00027397,10]
[423490602,1780159848000,-2365.275,0.00027397,10]
[423490598,1780159848000,-1593.45,0.00027397,10]
[423490600,1780159848000,-418.59089225,0.00027397,10]
[423490603,1780159848000,-2511.0,0.00027397,10]
[423490604,1780159848000,-1844.09,0.00027397,10]
[423490599,1780159848000,-1002.77422268,0.00027397,10]
[423490627,1780159849000,-663.25,0.00027872,2]
[423490623,1780159849000,-9.81402706,0.00027794,30]
[423490631,1780159849000,-663.25,0.00028033,30]
[423490626,1780159849000,-613.33,0.00027872,2]
[423490632,1780159849000,-531.7,0.00028194,7]
[423490628,1780159849000,-531.7,0.00027872,2]
[423490629,1780159849000,-613.33,0.00028033,30]
[423490645,1780159849000,-262.0,0.00032603,30]
[423490634,1780159849000,-613.33,0.00028194,7]
[423490625,1780159849000,-40.66597294,0.00027794,30]
[423490638,1780159849000,-663.25,0.00028516,30]
[423490637,1780159849000,-531.7,0.00028355,2]
[423490639,1780159849000,-531.7,0.00028516,30]
[423490640,1780159849000,-613.33,0.00028516,30]
[423490636,1780159849000,-613.33,0.00028355,2]
[423490633,1780159849000,-663.25,0.00028194,7]
[423490630,1780159849000,-531.7,0.00028033,30]
[423490622,1780159849000,-312.48,0.00027763,7]
[423490613,1780159849000,-312.48,0.00027611,30]
[423490641,1780159849000,-498.91096819,0.00028677,7]
[423490606,1780159849000,-681.58,0.00027397,10]
[423490610,1780159849000,-531.7,0.0002755,30]
[423490609,1780159849000,-613.33,0.0002755,30]
[423490611,1780159849000,-663.25,0.0002755,30]
[423490607,1780159849000,-957.5262027,0.00027397,10]
[423490608,1780159849000,-312.48,0.0002755,2]
[423490624,1780159849000,-262.0,0.00027794,30]
[423490612,1780159849000,-312.48,0.0002758,7]
[423490617,1780159849000,-613.33,0.00027711,7]
[423490615,1780159849000,-312.48,0.00027672,7]
[423490618,1780159849000,-663.25,0.00027711,7]
[423490620,1780159849000,-291.37479509,0.00027733,2]
[423490616,1780159849000,-312.48,0.00027702,30]
[423490621,1780159849000,-21.10520491,0.00027733,2]
[423490619,1780159849000,-531.7,0.00027711,7]
[423490614,1780159849000,-312.48,0.00027641,2]
[423490642,1780159849000,-164.33903181,0.00028677,7]
[423490666,1780159849000,-312.48,0.00027977,30]
[423490635,1780159849000,-663.25,0.00028355,2]
[423490669,1780159849000,-1090.0,0.00034036,5]
[423490668,1780159849000,-531.76,0.00029,30]
[423490665,1780159849000,-312.48,0.00027946,7]
[423490670,1780159849000,-185.137807,0.00035616,7]
[423490671,1780159849000,-185.137807,0.00035616,7]
[423490667,1780159849000,-312.48,0.00028007,2]
[423490672,1780159849000,-185.137807,0.00036033,7]
[423490664,1780159849000,-312.48,0.00027916,2]
[423490643,1780159849000,-531.7,0.00028677,7]
[423490675,1780159849000,-473.700965,0.00039205,20]
[423490680,1780159849000,-54487.43774233,0.00039205,20]
[423490678,1780159849000,-185.137807,0.00035616,7]
[423490676,1780159849000,-312.48,0.00028038,7]
[423490677,1780159849000,-312.48,0.00028068,30]
[423490681,1780159849000,-38201.60857817,0.00039205,20]
[423490679,1780159849000,-185.137807,0.00036033,7]
[423490673,1780159849000,-185.137807,0.00037304,7]
[423490661,1780159849000,-61.77,0.00021,2]
[423490674,1780159849000,-185.137807,0.00039204,30]
[423490663,1780159849000,-312.48,0.00027885,30]
[423490662,1780159849000,-312.48,0.00027855,7]
[423490647,1780159849000,-262.0,0.00034603,30]
[423490646,1780159849000,-262.0,0.00033603,30]
[423490649,1780159849000,-15935.15587975,0.00039205,20]
[423490648,1780159849000,-262.0,0.00035603,30]
[423490651,1780159849000,-663.25,0.00028838,2]
[423490653,1780159849000,-531.7,0.00028838,2]
[423490650,1780159849000,-312.48,0.00027824,2]
[423490644,1780159849000,-613.33,0.00028677,7]
[423490656,1780159849000,-816.62337101,0.00034029,2]
[423490654,1780159849000,-663.25,0.00029,30]
[423490657,1780159849000,-185.137807,0.00035616,7]
[423490658,1780159849000,-99645.51166922,0.00039205,20]
[423490655,1780159849000,-613.34,0.00029,30]
[423490660,1780159849000,-200.23,0.00021,2]
[423490659,1780159849000,-262.0,0.0002,2]
[423490652,1780159849000,-613.33,0.00028838,2]
[423490683,1780160167000,2500.0,0.00025521,120]
[423490689,1780160441000,614.0,0.00028,120]
[423490731,1780161032000,-219.884,0.00013499,2]
[423490722,1780161032000,-150.76,0.00013112,2]
[423490711,1780161032000,-2865.02001771,0.000125,2]
[423490712,1780161032000,-499.07432918,0.000125,2]
[423490715,1780161032000,-1878.34120918,0.000125,2]
[423490709,1780161032000,-856.08682692,0.000125,2]
[423490723,1780161032000,-150.0,0.00013216,2]
[423490706,1780161032000,-300.0,0.00012499,2]
[423490707,1780161032000,-31.40322568,0.000125,2]
[423490708,1780161032000,-710.5537323,0.000125,2]
[423490720,1780161032000,-591.86802884,0.000125,2]
[423490717,1780161032000,-1153.52195002,0.000125,2]
[423490704,1780161032000,-500.0,0.00012399,2]
[423490705,1780161032000,-398.78114331,0.00012499,3]
[423490703,1780161032000,-2597.81426441,0.00012208,2]
[423490702,1780161032000,-546.17890492,0.00012208,2]
[423490721,1780161032000,-254.61002114,0.000125,2]
[423490710,1780161032000,-636.65095903,0.000125,2]
[423490724,1780161032000,-21.7868602,0.00013498,2]
[423490738,1780161032000,-290.24399894,0.000135,2]
[423490729,1780161032000,-764.02862534,0.00013499,2]
[423490725,1780161032000,-128.2131398,0.00013498,2]
[423490743,1780161032000,-26945.71729491,0.00013599,2]
[423490741,1780161032000,-14452.9305311,0.00013589,2]
[423490744,1780161032000,-24060.71979522,0.00013599,2]
[423490745,1780161032000,-487.38503545,0.00013599,2]
[423490733,1780161032000,-5506.88416652,0.00013499,2]
[423490736,1780161032000,-4931.13291703,0.00013499,2]
[423490737,1780161032000,-177.07014013,0.00013499,2]
[423490742,1780161032000,-13128.30678997,0.00013599,2]
[423490740,1780161032000,-199.81301046,0.000135,2]
[423490735,1780161032000,-1634.28686208,0.00013499,2]
[423490734,1780161032000,-192.17336403,0.00013499,2]
[423490732,1780161032000,-2631.96,0.00013499,2]
[423490730,1780161032000,-515.2539661,0.00013499,2]
[423490727,1780161032000,-1770.81557437,0.00013499,2]
[423490728,1780161032000,-3720.71740856,0.00013499,2]
[423490739,1780161032000,-3251.24493784,0.000135,2]
[423490726,1780161032000,-729.18442563,0.00013499,2]
[423490762,1780161038000,-500.0,0.00013698,2]
[423490763,1780161038000,-500.0,0.00013698,2]
[423490766,1780161038000,-500.0,0.00013698,2]
[423490767,1780161038000,-500.0,0.00013698,2]
[423490769,1780161038000,-500.0,0.00013698,2]
[423490770,1780161038000,-500.0,0.00013698,2]
[423490768,1780161038000,-500.0,0.00013698,2]
[423490771,1780161038000,-500.0,0.00013698,2]
[423490773,1780161038000,-500.0,0.00013698,2]
[423490765,1780161038000,-500.0,0.00013698,2]
[423490779,1780161038000,-500.0,0.00013698,2]
[423490760,1780161038000,-500.0,0.00013698,2]
[423490753,1780161038000,-2670.10974202,0.00013599,2]
[423490759,1780161038000,-500.0,0.00013698,2]
[423490758,1780161038000,-600.0,0.000136,4]
[423490764,1780161038000,-500.0,0.00013698,2]
[423490757,1780161038000,-1938655.696,0.00013599,2]
[423490756,1780161038000,-891406.98177575,0.00013599,2]
[423490754,1780161038000,-999.8506,0.00013599,2]
[423490772,1780161038000,-500.0,0.00013698,2]
[423490752,1780161038000,-1738.835448,0.00013599,2]
[423490751,1780161038000,-537540.21173527,0.00013599,2]
[423490749,1780161038000,-1208.05176702,0.00013499,2]
[423490750,1780161038000,-1291.94823298,0.00013499,2]
[423490761,1780161038000,-500.0,0.00013698,2]
[423490777,1780161038000,-500.0,0.00013698,2]
[423490755,1780161038000,-1021.88178341,0.00013599,2]
[423490775,1780161038000,-509.66155533,0.00013698,2]
[423490776,1780161038000,-500.0,0.00013698,2]
[423490800,1780161038000,-500.0,0.00013698,2]
[423490802,1780161038000,-500.0,0.00013698,2]
[423490801,1780161038000,-500.0,0.00013698,2]
[423490798,1780161038000,-500.0,0.00013698,2]
[423490799,1780161038000,-500.0,0.00013698,2]
[423490797,1780161038000,-500.0,0.00013698,2]
[423490795,1780161038000,-500.0,0.00013698,2]
[423490796,1780161038000,-500.0,0.00013698,2]
[423490789,1780161038000,-500.0,0.00013698,2]
[423490785,1780161038000,-500.0,0.00013698,2]
[423490784,1780161038000,-500.0,0.00013698,2]
[423490794,1780161038000,-500.0,0.00013698,2]
[423490786,1780161038000,-500.0,0.00013698,2]
[423490774,1780161038000,-500.0,0.00013698,2]
[423490787,1780161038000,-500.0,0.00013698,2]
[423490778,1780161038000,-500.0,0.00013698,2]
[423490780,1780161038000,-500.0,0.00013698,2]
[423490782,1780161038000,-500.0,0.00013698,2]
[423490791,1780161038000,-500.0,0.00013698,2]
[423490783,1780161038000,-500.0,0.00013698,2]
[423490781,1780161038000,-500.0,0.00013698,2]
[423490792,1780161038000,-500.0,0.00013698,2]
[423490793,1780161038000,-500.0,0.00013698,2]
[423490788,1780161038000,-500.0,0.00013698,2]
[423490790,1780161038000,-500.0,0.00013698,2]
[423490838,1780161039000,-1344.57,0.00013698,2]
[423490843,1780161039000,-1344.57,0.00013698,2]
[423490844,1780161039000,-1344.57,0.00013698,2]
[423490839,1780161039000,-1344.57,0.00013698,2]
[423490841,1780161039000,-1344.57,0.00013698,2]
[423490833,1780161039000,-1344.57,0.00013698,2]
[423490842,1780161039000,-1344.57,0.00013698,2]
[423490840,1780161039000,-1344.57,0.00013698,2]
[423490836,1780161039000,-1344.57,0.00013698,2]
[423490868,1780161039000,-500.0,0.00013698,2]
[423490855,1780161039000,-500.0,0.00013698,2]
[423490837,1780161039000,-1344.57,0.00013698,2]
[423490852,1780161039000,-500.0,0.00013698,2]
[423490867,1780161039000,-500.0,0.00013698,2]
[423490854,1780161039000,-500.0,0.00013698,2]
[423490846,1780161039000,-500.0,0.00013698,2]
[423490845,1780161039000,-1344.57,0.00013698,2]
[423490847,1780161039000,-500.0,0.00013698,2]
[423490848,1780161039000,-500.0,0.00013698,2]
[423490850,1780161039000,-500.0,0.00013698,2]
[423490851,1780161039000,-500.0,0.00013698,2]
[423490849,1780161039000,-500.0,0.00013698,2]
[423490856,1780161039000,-500.0,0.00013698,2]
[423490857,1780161039000,-500.0,0.00013698,2]
[423490859,1780161039000,-500.0,0.00013698,2]
[423490835,1780161039000,-1344.57,0.00013698,2]
[423490858,1780161039000,-500.0,0.00013698,2]
[423490853,1780161039000,-500.0,0.00013698,2]
[423490834,1780161039000,-1344.57,0.00013698,2]
[423490820,1780161039000,-639.96506873,0.00013698,2]
[423490830,1780161039000,-500.0,0.00013698,2]
[423490805,1780161039000,-500.0,0.00013698,2]
[423490806,1780161039000,-500.0,0.00013698,2]
[423490803,1780161039000,-500.0,0.00013698,2]
[423490804,1780161039000,-500.0,0.00013698,2]
[423490808,1780161039000,-500.0,0.00013698,2]
[423490807,1780161039000,-500.0,0.00013698,2]
[423490809,1780161039000,-500.0,0.00013698,2]
[423490810,1780161039000,-500.0,0.00013698,2]
[423490811,1780161039000,-500.0,0.00013698,2]
[423490812,1780161039000,-616.04,0.00013698,2]
[423490813,1780161039000,-500.0,0.00013698,2]
[423490818,1780161039000,-500.0,0.00013698,2]
[423490815,1780161039000,-500.0,0.00013698,2]
[423490814,1780161039000,-377.06035753,0.00013698,2]
[423490817,1780161039000,-500.0,0.00013698,2]
[423490816,1780161039000,-500.0,0.00013698,2]
[423490819,1780161039000,-410.30161227,0.00013698,2]
[423490822,1780161039000,-500.0,0.00013698,2]
[423490824,1780161039000,-500.0,0.00013698,2]
[423490823,1780161039000,-500.0,0.00013698,2]
[423490826,1780161039000,-505.94594791,0.00013698,2]
[423490827,1780161039000,-500.0,0.00013698,2]
[423490821,1780161039000,-500.0,0.00013698,2]
[423490825,1780161039000,-500.0,0.00013698,2]
[423490831,1780161039000,-645.86663214,0.00013698,2]
[423490828,1780161039000,-500.0,0.00013698,2]
[423490829,1780161039000,-307.08,0.00013698,2]
[423490832,1780161039000,-1344.57,0.00013698,2]
[423490863,1780161039000,-500.0,0.00013698,2]
[423490888,1780161039000,-151.0,0.00013699,2]
[423490860,1780161039000,-500.0,0.00013698,2]
[423490896,1780161039000,-151.0,0.00013699,2]
[423490897,1780161039000,-151.0,0.00013699,2]
[423490903,1780161039000,-151.0,0.00013699,2]
[423490900,1780161039000,-151.0,0.00013699,2]
[423490904,1780161039000,-279.960539,0.00013699,2]
[423490901,1780161039000,-151.0,0.00013699,2]
[423490898,1780161039000,-151.0,0.00013699,2]
[423490902,1780161039000,-151.0,0.00013699,2]
[423490905,1780161039000,-1300.0,0.000137,5]
[423490899,1780161039000,-151.0,0.00013699,2]
[423490907,1780161039000,-420.0,0.00013714,2]
[423490909,1780161039000,-2198.77,0.0001381,2]
[423490908,1780161039000,-2000.0,0.000138,5]
[423490912,1780161039000,-166.66,0.00013973,2]
[423490914,1780161039000,-866.18,0.00013986,2]
[423490915,1780161039000,-372.13,0.00013986,2]
[423490910,1780161039000,-166.66,0.00013836,2]
[423490916,1780161039000,-781.06,0.00013986,2]
[423490911,1780161039000,-2600.0,0.000139,5]
[423490913,1780161039000,-2000.0,0.00013986,2]
[423490917,1780161039000,-476.7,0.00013986,2]
[423490918,1780161039000,-1026.22803777,0.0001399,2]
[423490919,1780161039000,-250.0,0.00014,2]
[423490920,1780161039000,-2000.0,0.00014104,2]
[423490923,1780161039000,-1361.26,0.0001428,2]
[423490921,1780161039000,-166.66,0.0001411,2]
[423490924,1780161039000,-187.07,0.0001428,2]
[423490906,1780161039000,-163.44,0.000137,2]
[423490895,1780161039000,-151.0,0.00013699,2]
[423490922,1780161039000,-166.66,0.00014247,2]
[423490892,1780161039000,-151.0,0.00013699,2]
[423490891,1780161039000,-151.0,0.00013699,2]
[423490861,1780161039000,-500.0,0.00013698,2]
[423490862,1780161039000,-500.0,0.00013698,2]
[423490865,1780161039000,-500.0,0.00013698,2]
[423490866,1780161039000,-500.0,0.00013698,2]
[423490872,1780161039000,-500.0,0.00013698,2]
[423490875,1780161039000,-500.0,0.00013698,2]
[423490873,1780161039000,-500.0,0.00013698,2]
[423490879,1780161039000,-151.0,0.00013699,2]
[423490874,1780161039000,-500.0,0.00013698,2]
[423490870,1780161039000,-508.40286137,0.00013698,2]
[423490876,1780161039000,-500.0,0.00013698,2]
[423490871,1780161039000,-500.0,0.00013698,2]
[423490869,1780161039000,-500.0,0.00013698,2]
[423490864,1780161039000,-500.0,0.00013698,2]
[423490881,1780161039000,-151.0,0.00013699,2]
[423490880,1780161039000,-151.0,0.00013699,2]
[423490890,1780161039000,-151.0,0.00013699,2]
[423490887,1780161039000,-151.0,0.00013699,2]
[423490889,1780161039000,-151.0,0.00013699,2]
[423490886,1780161039000,-151.0,0.00013699,2]
[423490884,1780161039000,-151.0,0.00013699,2]
[423490885,1780161039000,-151.0,0.00013699,2]
[423490894,1780161039000,-151.0,0.00013699,2]
[423490893,1780161039000,-151.0,0.00013699,2]
[423490883,1780161039000,-151.0,0.00013699,2]
[423490878,1780161039000,-2500.0,0.00013699,2]
[423490877,1780161039000,-166.66,0.00013699,2]
[423490882,1780161039000,-151.0,0.00013699,2]
[423490963,1780161040000,-151.8,0.00020381,2]
[423490978,1780161040000,-151.0,0.00020603,2]
[423490977,1780161040000,-3638.0,0.00020544,2]
[423490961,1780161040000,-300.0,0.000201,10]
[423490965,1780161040000,-150.0,0.00020544,2]
[423490955,1780161040000,-360.0,0.0002,2]
[423490960,1780161040000,-400.0,0.0002,2]
[423490964,1780161040000,-150.223,0.00020544,2]
[423490958,1780161040000,-705.0,0.0002,2]
[423490972,1780161040000,-3550.0,0.00020544,2]
[423490959,1780161040000,-184.0,0.0002,2]
[423490970,1780161040000,-151.0,0.00020544,2]
[423490975,1780161040000,-932.0,0.00020544,2]
[423490974,1780161040000,-1226.0,0.00020544,2]
[423490966,1780161040000,-167.287,0.00020544,2]
[423490969,1780161040000,-150.597,0.00020544,2]
[423490968,1780161040000,-150.524,0.00020544,2]
[423490957,1780161040000,-200.0,0.0002,10]
[423490973,1780161040000,-1412.213,0.00020544,2]
[423490971,1780161040000,-1356.0,0.00020544,2]
[423490980,1780161040000,-151.0,0.00020604,2]
[423490979,1780161040000,-151.0,0.00020604,2]
[423490981,1780161040000,-151.0,0.00020604,2]
[423490989,1780161040000,-151.0,0.00020604,2]
[423490990,1780161040000,-151.0,0.00020604,2]
[423490982,1780161040000,-151.0,0.00020604,2]
[423490967,1780161040000,-150.0,0.00020544,2]
[423490962,1780161040000,-8292.67,0.00020305,2]
[423490948,1780161040000,-150.76,0.00019669,2]
[423490954,1780161040000,-152.0,0.0002,2]
[423490983,1780161040000,-151.0,0.00020604,2]
[423490929,1780161040000,-328.86,0.00015017,2]
[423490928,1780161040000,-500.0,0.00014998,2]
[423490926,1780161040000,-200.0,0.00014332,2]
[423490925,1780161040000,-418.94,0.0001428,2]
[423490927,1780161040000,-166.66,0.00014384,2]
[423490931,1780161040000,-5506.88416644,0.00015638,2]
[423490941,1780161040000,-4931.132917,0.00017778,2]
[423490930,1780161040000,-215.58360558,0.00015127,2]
[423490942,1780161040000,-350.0,0.00018,2]
[423490933,1780161040000,-4931.132917,0.00015638,2]
[423490940,1780161040000,-5506.88416644,0.00017778,2]
[423490937,1780161040000,-200.0,0.00016811,2]
[423490938,1780161040000,-2000.0,0.0001763,2]
[423490934,1780161040000,-2000.0,0.00015867,2]
[423490936,1780161040000,-151.8,0.00016438,2]
[423490939,1780161040000,-177.07014009,0.00017768,2]
[423490944,1780161040000,-9999.99,0.00019339,2]
[423490952,1780161040000,-215.0,0.0002,2]
[423490953,1780161040000,-329.0,0.0002,2]
[423490943,1780161040000,-151.8,0.0001841,2]
[423490947,1780161040000,-990.31,0.00019607,2]
[423490946,1780161040000,-2000.0,0.00019393,2]
[423490949,1780161040000,-5506.88416644,0.00019917,2]
[423490945,1780161040000,-150.99,0.00019339,2]
[423490950,1780161040000,-4931.132917,0.00019917,2]
[423490951,1780161040000,-209.0,0.0002,2]
[423490956,1780161040000,-154.0,0.0002,2]
[423490935,1780161040000,-300.0,0.00016,2]
[423490987,1780161040000,-151.0,0.00020604,2]
[423490985,1780161040000,-151.0,0.00020604,2]
[423491018,1780161040000,-5506.88416644,0.00022057,2]
[423491026,1780161040000,-154.0,0.00023,2]
[423491027,1780161040000,-705.0,0.00023,2]
[423491017,1780161040000,-177.07014009,0.00022037,2]
[423491023,1780161040000,-215.0,0.00023,2]
[423491028,1780161040000,-184.0,0.00023,2]
[423491022,1780161040000,-209.0,0.00023,2]
[423491024,1780161040000,-329.0,0.00023,2]
[423491025,1780161040000,-360.0,0.00023,2]
[423491029,1780161040000,-2318.0,0.00023211,3]
[423491030,1780161040000,-500.0,0.00023484,2]
[423491037,1780161040000,-932.0,0.00023544,2]
[423491031,1780161040000,-187.71242717,0.00023484,30]
[423491036,1780161040000,-1213.65,0.00023544,2]
[423491038,1780161040000,-3638.0,0.00023544,2]
[423491035,1780161040000,-3550.0,0.00023544,2]
[423491034,1780161040000,-1356.0,0.00023544,2]
[423491033,1780161040000,-150.0,0.00023544,2]
[423491039,1780161040000,-168.42,0.0002386,2]
[423491040,1780161040000,-209.0,0.00024,2]
[423491041,1780161040000,-215.0,0.00024,2]
[423491042,1780161040000,-329.0,0.00024,2]
[423491044,1780161040000,-160.8477614,0.00024,2]
[423491043,1780161040000,-360.0,0.00024,2]
[423491046,1780161040000,-184.0,0.00024,2]
[423491045,1780161040000,-705.0,0.00024,2]
[423490984,1780161040000,-151.0,0.00020604,2]
[423491019,1780161040000,-4931.132917,0.00022057,2]
[423491021,1780161040000,-163.0,0.00022571,3]
[423491032,1780161040000,-150.0,0.00023544,2]
[423491016,1780161040000,-450.0,0.00022,2]
[423490988,1780161040000,-151.0,0.00020604,2]
[423491020,1780161040000,-151.8,0.00022353,2]
[423490986,1780161040000,-151.0,0.00020604,2]
[423490991,1780161040000,-151.0,0.00020604,2]
[423490995,1780161040000,-151.0,0.00020604,2]
[423491002,1780161040000,-360.0,0.00021,2]
[423491000,1780161040000,-215.0,0.00021,2]
[423490996,1780161040000,-151.0,0.00020604,2]
[423490994,1780161040000,-151.0,0.00020604,2]
[423490998,1780161040000,-151.0,0.00020604,2]
[423490999,1780161040000,-209.0,0.00021,2]
[423490992,1780161040000,-151.0,0.00020604,2]
[423490993,1780161040000,-151.0,0.00020604,2]
[423490997,1780161040000,-151.0,0.00020604,2]
[423491001,1780161040000,-329.0,0.00021,2]
[423491011,1780161040000,-329.0,0.00022,2]
[423491010,1780161040000,-215.0,0.00022,2]
[423491004,1780161040000,-705.0,0.00021,2]
[423491008,1780161040000,-6477.09,0.0002137,2]
[423491006,1780161040000,-2000.0,0.00021157,2]
[423491007,1780161040000,-10000.0,0.00021285,2]
[423491015,1780161040000,-184.0,0.00022,2]
[423491012,1780161040000,-360.0,0.00022,2]
[423491013,1780161040000,-154.0,0.00022,2]
[423491003,1780161040000,-154.0,0.00021,2]
[423491014,1780161040000,-705.0,0.00022,2]
[423491005,1780161040000,-184.0,0.00021,2]
[423491009,1780161040000,-209.0,0.00022,2]
[423491080,1780161041000,-192.17336401,0.00026307,2]
[423491092,1780161041000,-829.0,0.00026979,2]
[423491087,1780161041000,-1086.029,0.00026544,2]
[423491088,1780161041000,-3550.0,0.00026544,2]
[423491090,1780161041000,-3638.0,0.00026544,2]
[423491084,1780161041000,-5506.88416644,0.00026336,2]
[423491078,1780161041000,-5000.0,0.00026046,2]
[423491082,1780161041000,-3251.24493783,0.00026307,2]
[423491081,1780161041000,-177.07014009,0.00026307,2]
[423491085,1780161041000,-4931.132917,0.00026336,2]
[423491101,1780161041000,-23393.6,0.00027397,10]
[423491083,1780161041000,-199.81301046,0.00026307,2]
[423491102,1780161041000,-1217.67,0.000274,14]
[423491111,1780161041000,-251.16,0.0002758,7]
[423491091,1780161041000,-270.66,0.00026637,2]
[423491095,1780161041000,-1500.0,0.00027397,2]
[423491094,1780161041000,-187.99,0.0002722,2]
[423491099,1780161041000,-16313.89,0.00027397,10]
[423491100,1780161041000,-28072.31,0.00027397,10]
[423491098,1780161041000,-213.32,0.00027397,2]
[423491096,1780161041000,-647.75,0.00027397,20]
[423491097,1780161041000,-300.0,0.00027397,2]
[423491104,1780161041000,-150.0,0.00027521,2]
[423491114,1780161041000,-249.35,0.00027641,2]
[423491105,1780161041000,-530.8,0.0002755,30]
[423491109,1780161041000,-251.16,0.0002755,2]
[423491079,1780161041000,-151.8,0.00026296,2]
[423491093,1780161041000,-1004.48,0.00026979,2]
[423491086,1780161041000,-1004.48,0.00026366,2]
[423491049,1780161041000,-4931.132917,0.00024196,2]
[423491075,1780161041000,-187.99,0.00025923,2]
[423491106,1780161041000,-614.52,0.0002755,30]
[423491050,1780161041000,-151.8,0.00024324,2]
[423491047,1780161041000,-500.0,0.00024,2]
[423491048,1780161041000,-5506.88416644,0.00024196,2]
[423491051,1780161041000,-1088.35,0.00024396,2]
[423491052,1780161041000,-1004.48,0.00024527,2]
[423491054,1780161041000,-1000.0,0.00024658,2]
[423491063,1780161041000,-716.0,0.00025,2]
[423491053,1780161041000,-187.99,0.00024627,2]
[423491065,1780161041000,-188.0,0.00025,2]
[423491056,1780161041000,-213.32,0.00024658,2]
[423491066,1780161041000,-204.64,0.00025,2]
[423491058,1780161041000,-1047.61960593,0.00025,2]
[423491089,1780161041000,-932.0,0.00026544,2]
[423491061,1780161041000,-373.0,0.00025,2]
[423491055,1780161041000,-500.0,0.00024658,2]
[423491059,1780161041000,-225.0,0.00025,2]
[423491060,1780161041000,-346.0,0.00025,2]
[423491076,1780161041000,-500.0,0.00026,2]
[423491067,1780161041000,-1004.48,0.0002514,2]
[423491071,1780161041000,-500.0,0.00025799,2]
[423491070,1780161041000,-500.0,0.00025799,2]